bitfinex-derivatives/quotes_ETHF0:USTF0_20240930
["timestamp","ask_amount","ask_price","bid_price","bid_amount"]
[1727695684794,0.77612,2620.3,2620.2,0.38163]
[1727695685801,0.38163,2620.2,2620.1,2.77164]
[1727695686000,0.3945,2620.3,2620.1,2.39]
[1727695686804,0.95388,2620.8,2620.4,0.38158]
[1727695687001,0.95388,2620.8,2620.4,2.39]
[1727695687002,0.38158,2620.6,2620.4,2.39]
[1727695687209,0.38158,2620.6,2620.5,4.71742207]
[1727695687515,0.38148,2621.2,2621.0,0.38151]
[1727695687715,0.3815,2621.1,2621.0,2.39]
[1727695688511,1.1441,2621.2,2621.0,2.39]
[1727695688713,0.38152,2621.0,2620.8,3.16713]
[1727695689413,2.09783,2621.2,2620.8,2.7856]
[1727695689715,1.52559,2621.2,2621.0,2.7715]
[1727695690412,1.52558,2621.2,2621.0,2.7715]
[1727695690614,0.3815,2621.1,2621.0,2.7715]
[1727695690822,1.1441,2621.2,2621.0,2.7715]
[1727695691114,1.52559,2621.2,2621.0,2.7715]
[1727695691913,0.3815,2621.1,2621.0,2.39]
[1727695692109,1.1441,2621.2,2621.0,2.39]
[1727695692304,0.3798,2621.2,2621.0,2.39]
[1727695692610,0.3798,2621.2,2621.0,7.00301081]
[1727695693014,0.3815,2621.1,2621.0,6.62151081]
[1727695693210,0.3815,2621.1,2621.0,4.23151081]
[1727695693403,0.38151,2621.0,2620.9,0.38152]
[1727695693808,0.7387,2621.1,2620.9,0.38152]
[1727695694008,1.1202,2621.1,2620.8,4.4786]
[1727695694210,1.1202,2621.1,2621.0,0.38151]
[1727695695404,0.7387,2621.1,2620.8,3.16713]
[1727695695610,0.7387,2621.1,2620.8,4.46453]
[1727695695812,0.38152,2620.9,2620.8,4.46453]
[1727695696006,0.95384,2620.9,2620.5,2.7645]
[1727695696212,0.38155,2620.8,2620.6,0.38156]
[1727695696414,0.38155,2620.8,2620.7,4.21316095]
[1727695696616,0.38155,2620.8,2620.6,4.59472095]
[1727695696816,3.2078,2621.0,2620.5,2.7645]
[1727695697125,0.38156,2620.7,2620.6,4.4488579]
[1727695700515,0.38155,2620.8,2620.6,4.4488579]
[1727695700715,0.38155,2620.7,2620.6,4.4488579]
[1727695701119,0.95382,2620.9,2620.6,4.4488579]
[1727695701321,0.38155,2620.8,2620.6,4.4488579]
[1727695701921,0.38155,2620.7,2620.6,4.4488579]
[1727695702720,3.2078,2621.0,2620.6,4.4488579]
[1727695702721,3.2078,2621.0,2620.6,13.8832879]
[1727695702923,3.2078,2621.0,2620.9,0.38152]
[1727695703321,3.2078,2621.0,2620.9,8.21287241]
[1727695703527,0.38148,2621.2,2621.1,0.38149]
[1727695703723,3.2078,2621.6,2621.1,2.39]
[1727695703927,3.2078,2621.6,2621.2,0.38147]
[1727695704124,0.38147,2621.3,2621.2,0.38148]
[1727695704333,0.38147,2621.3,2621.1,2.77149]
[1727695704531,0.38147,2621.3,2621.2,4.3913695]
[1727695704823,0.9536,2621.5,2621.2,4.3913695]
[1727695705025,0.38147,2621.3,2621.2,4.3913695]
[1727695705917,0.9536,2621.5,2621.2,4.3913695]
[1727695706124,0.38147,2621.3,2621.2,4.3913695]
[1727695707422,0.9536,2621.5,2621.2,4.3913695]
[1727695707629,1.33505,2621.5,2621.2,4.3913695]
[1727695707830,0.38147,2621.3,2621.2,4.3913695]
[1727695709527,0.38147,2621.3,2621.1,2.39]
[1727695709820,0.38146,2621.4,2621.2,8.00662472]
[1727695710025,0.38146,2621.4,2621.2,4.19142472]
[1727695710220,0.3868,2621.5,2621.2,8.00662472]
[1727695710431,0.38147,2621.3,2621.2,4.19142472]
[1727695710629,0.38146,2621.4,2621.2,4.19142472]
[1727695710925,0.38146,2621.4,2620.7,2.05665997]
[1727695710926,0.95377,2621.1,2620.4,0.99774043]
[1727695711126,0.95382,2620.9,2620.3,2.7747]
[1727695711430,0.38156,2620.7,2620.5,4.46227437]
[1727695711621,0.95382,2620.9,2620.5,0.38158]
[1727695711825,40.8,2620.8,2620.5,0.38158]
[1727695712020,40.8,2620.8,2620.3,2.7747]
[1727695712329,41.18155,2620.8,2620.5,0.38157]
[1727695713032,41.18155,2620.8,2620.3,2.7747]
[1727695713335,41.18155,2620.8,2620.4,0.3816]
[1727695713632,0.38155,2620.7,2620.5,0.38157]
[1727695714028,0.375,2620.6,2620.5,0.38157]
[1727695716834,3.2078,2621.0,2620.5,12.206]
[1727695717138,4.35181,2621.0,2620.9,2.39]
[1727695717541,1.14401,2621.0,2620.9,2.39]
[1727695718135,0.7625,2621.0,2620.9,2.77152]
[1727695718334,1.14401,2621.0,2620.9,2.77152]
[1727695718537,0.7625,2621.0,2620.9,2.77152]
[1727695719633,1.14401,2621.0,2620.9,2.77152]
[1727695720936,1.14401,2621.0,2620.8,0.38153]
[1727695720937,0.38152,2620.9,2620.8,0.38153]
[1727695721438,0.7625,2621.0,2620.7,2.39]
[1727695721630,1.14402,2621.0,2620.9,0.38152]
[1727695721941,0.7625,2621.0,2620.9,0.38152]
[1727695722145,1.14401,2621.0,2620.9,0.38152]
[1727695722436,0.7625,2621.0,2620.9,0.38152]
[1727695722639,1.14401,2621.0,2620.9,0.38152]
[1727695725736,0.38154,2620.9,2620.8,0.38153]
[1727695726141,0.38154,2620.9,2620.8,0.38154]
[1727695726436,4.92409,2621.0,2620.7,2.39]
[1727695726637,0.38154,2620.8,2620.7,2.77155]
[1727695726938,0.95382,2620.9,2620.5,0.99774043]
[1727695727141,0.77546,2620.7,2620.6,0.38156]
[1727695727840,0.3939,2620.7,2620.6,0.38156]
[1727695728738,0.77545,2620.7,2620.6,0.38156]
[1727695729238,0.3939,2620.7,2620.6,0.38156]
[1727695729431,0.77546,2620.7,2620.6,0.38157]
[1727695729846,0.3939,2620.7,2620.6,0.38157]
[1727695730042,0.77545,2620.7,2620.6,0.38157]
[1727695730241,0.3939,2620.7,2620.6,0.38157]
[1727695731245,0.3939,2620.7,2620.6,1.37931043]
[1727695731936,4.92408,2621.0,2620.6,1.37931043]
[1727695731937,3.9703,2621.0,2620.6,0.99774043]
[1727695732139,0.38154,2620.8,2620.7,2.39]
[1727695732338,0.38154,2620.8,2620.7,2.77155]
[1727695732543,0.38154,2620.8,2620.7,2.39]
[1727695732739,0.38155,2620.7,2620.6,0.99774043]
[1727695732940,3.2078,2620.7,2620.4,0.99774043]
[1727695733141,0.74927,2620.6,2620.5,0.99774043]
[1727695733444,0.3677,2620.6,2620.5,1.37932043]
[1727695733641,0.3677,2620.6,2620.5,0.99774043]
[1727695734036,0.3677,2620.6,2620.5,1.37932043]
[1727695734242,0.3677,2620.6,2620.5,3.76932043]
[1727695734439,1.73729,2621.0,2620.5,4.69475723]
[1727695734639,0.3677,2620.9,2620.6,0.99774043]
[1727695734834,0.3677,2620.9,2620.8,2.77154]
[1727695735038,0.74922,2620.9,2620.8,2.39]
[1727695735238,0.74922,2620.9,2620.8,6.2052]
[1727695735445,0.38146,2621.4,2621.2,0.38147]
[1727695735740,0.38145,2621.4,2621.3,6.51918523]
[1727695735941,4.16133,2621.7,2621.3,7.51867333]
[1727695736142,0.38144,2621.5,2621.3,7.90013333]
[1727695737250,0.38144,2621.5,2621.3,7.51867333]
[1727695737549,0.38144,2621.5,2621.3,6.90065523]
[1727695737741,0.38144,2621.5,2621.3,7.90014333]
[1727695738148,0.38144,2621.5,2621.3,6.90065523]
[1727695740549,0.38145,2621.5,2621.3,6.90064523]
[1727695741049,1.9740754,2621.6,2621.3,4.12918523]
[1727695741344,0.38147,2621.3,2621.1,0.38149]
[1727695741544,3.2078,2621.4,2620.9,2.39]
[1727695741545,0.4396,2621.2,2620.9,2.39]
[1727695741739,0.8531,2621.2,2621.1,0.3815]
[1727695741941,0.8531,2621.2,2620.9,2.39]
[1727695742241,1.23458,2621.2,2621.0,0.3815]
[1727695743146,1.23458,2621.2,2620.9,2.77152]
[1727695743446,1.23458,2621.2,2621.0,0.38151]
[1727695743645,1.23458,2621.2,2620.9,2.39]
[1727695743850,1.23458,2621.2,2620.9,2.77151]
[1727695744652,3.2086554,2621.2,2620.9,2.77151]
[1727695745041,3.2086554,2621.2,2621.0,0.38151]
[1727695745241,1.23458,2621.2,2620.9,2.77151]
[1727695745437,2.8271754,2621.2,2620.9,2.39]
[1727695745643,3.2086654,2621.2,2620.9,2.77152]
[1727695746351,3.2086554,2621.2,2621.0,0.38151]
[1727695746940,3.2086554,2621.2,2620.9,2.39]
[1727695747345,3.2086554,2621.2,2621.0,0.38151]
[1727695747549,2.8271754,2621.2,2621.0,0.38151]
[1727695747747,2.8271754,2621.2,2620.9,2.39]
[1727695747947,3.2086654,2621.2,2621.0,0.38151]
[1727695748158,1.23459,2621.2,2621.0,0.38151]
[1727695748358,1.23458,2621.2,2621.0,0.3815]
[1727695748953,0.3815,2621.1,2621.0,0.3815]
[1727695749146,0.3815,2621.1,2620.9,3.3894881]
[1727695749343,0.8531,2621.2,2621.0,0.38151]
[1727695749552,0.3815,2621.1,2620.9,3.3894881]
[1727695749850,0.8531,2621.2,2621.0,0.38151]
[1727695750156,0.3815,2621.1,2621.0,0.38151]
[1727695750556,0.8531,2621.2,2621.1,0.3815]
[1727695751055,4.6683,2621.2,2620.9,0.9994881]
[1727695751252,4.6683,2621.2,2620.8,0.9994881]
[1727695751253,0.8531,2621.2,2620.8,0.9994881]
[1727695751447,0.8531,2621.2,2620.9,4.3433081]
[1727695751754,0.8531,2621.2,2621.1,1.4815]
[1727695752156,4.6683,2621.2,2621.1,1.4815]
[1727695753156,3.8152,2621.2,2621.1,1.4815]
[1727695753358,0.8603,2621.4,2621.3,0.38147]
[1727695753554,0.38148,2621.3,2621.2,0.38148]
[1727695753756,6.24883338,2622.0,2621.2,0.38148]
[1727695753950,5.48133204,2623.6,2621.2,0.38148]
[1727695753951,3.05669371,2623.5,2623.4,0.38116]
[1727695754256,7.76335371,2623.5,2623.4,7.35244747]
[1727695754553,7.76335371,2623.5,2623.4,4.13670398]
[1727695754554,4.55555371,2623.5,2623.4,4.13670398]
[1727695754757,4.55555371,2623.5,2623.1,0.99689183]
[1727695754758,1.49886,2623.5,2623.1,0.99689183]
[1727695754956,0.36963524,2623.0,2622.2,1.99234892]
[1727695755155,1.49886,2623.0,2622.3,1.48617116]
[1727695755357,0.36963524,2621.9,2621.8,0.8604]
[1727695755555,0.36963524,2621.9,2621.8,7.94607242]
[1727695755753,40.8,2622.9,2622.4,0.3813]
[1727695756059,42.29886,2622.9,2622.8,2.38]
[1727695756355,1.49886,2622.9,2622.5,2.38]
[1727695756551,3.2078,2622.7,2622.0,5.5878]
[1727695756747,44.0078,2622.7,2622.0,5.5878]
[1727695757055,3.2078,2622.3,2621.3,5.5878]
[1727695757254,3.58908,2622.6,2621.9,2.38]
[1727695757455,4.70666,2622.6,2622.2,2.38]
[1727695757756,1.49886,2622.6,2622.4,2.38]
[1727695757960,1.93856,2622.6,2622.4,2.38]
[1727695758550,1.93856,2622.6,2622.2,3.2078]
[1727695758762,1.93856,2622.6,2622.4,2.38]
[1727695759059,0.3813,2622.5,2622.3,4.00670074]
[1727695759254,5.75216,2622.6,2622.1,2.38]
[1727695759255,44.6136,2622.4,2622.1,2.38]
[1727695759561,1.93856,2622.6,2622.3,2.38]
[1727695759865,40.8,2622.5,2622.3,2.38]
[1727695760259,1.49886,2622.5,2622.3,2.38]
[1727695761058,1.49886,2622.5,2622.3,5.5878]
[1727695761251,1.49886,2622.5,2622.3,2.38]
[1727695761457,3.8136,2622.4,2622.3,2.38]
[1727695761651,0.38133,2622.3,2622.0,5.5878]
[1727695761960,0.8963,2622.3,2622.0,5.5878]
[1727695762160,2.39516,2622.3,2622.0,5.96916]
[1727695762458,2.39516,2622.3,2622.0,5.5878]
[1727695762958,2.39516,2622.3,2622.0,5.96916]
[1727695763657,2.39516,2622.3,2622.0,5.5878]
[1727695763853,2.39516,2622.3,2622.1,0.38134]
[1727695764360,0.4397,2622.6,2622.2,6.61229833]
[1727695764557,1.93856,2622.6,2622.3,2.38]
[1727695764857,0.3811,2623.9,2622.8,0.95313]
[1727695765061,3.2078,2624.1,2623.4,3.2078]
[1727695765062,0.4472,2624.1,2623.4,3.2078]
[1727695765262,0.4472,2624.1,2623.3,0.38116]
[1727695765263,1.24521,2623.8,2623.3,0.38116]
[1727695765461,0.38114,2623.6,2623.2,5.5878]
[1727695765667,0.4472,2623.5,2623.2,5.5878]
[1727695766158,0.4472,2623.5,2623.4,2.38]
[1727695766359,0.8641,2623.8,2623.4,2.38]
[1727695766556,0.4252,2623.8,2623.7,2.38]
[1727695766761,0.4252,2623.8,2623.7,2.76112]
[1727695766954,0.4472,2624.1,2623.7,2.76111]
[1727695767461,0.4472,2624.1,2623.7,2.38]
[1727695767671,0.4472,2624.1,2623.9,5.96888]
[1727695767964,0.4472,2624.1,2624.0,0.38107]
[1727695768160,0.4472,2624.1,2623.9,5.5878]
[1727695768766,0.4472,2624.1,2623.9,5.96888]
[1727695769063,0.4472,2624.1,2623.9,5.5878]
[1727695769263,3.8112,2624.0,2623.4,3.2078]
[1727695769567,0.95278,2623.8,2623.0,5.5878]
[1727695769771,0.8571,2623.7,2623.2,2.38]
[1727695770169,1.23822,2623.7,2623.3,3.2078]
[1727695770360,40.8,2623.6,2623.3,3.2078]
[1727695771258,3.812,2623.5,2623.0,2.38]
[1727695771457,3.812,2623.5,2622.9,3.2078]
[1727695771458,0.3812,2623.2,2622.9,3.2078]
[1727695771767,0.81711,2623.1,2622.9,3.2078]
[1727695772269,0.4359,2623.1,2622.9,3.58903]
[1727695773079,0.4359,2623.1,2622.9,3.2078]
[1727695773280,0.4359,2623.1,2622.9,3.58903]
[1727695773475,0.4359,2623.1,2622.9,3.2078]
[1727695773783,0.38122,2623.0,2622.9,3.2078]
[1727695774080,0.4359,2623.1,2622.9,3.2078]
[1727695774485,0.81711,2623.1,2622.9,3.2078]
[1727695775180,0.4383,2623.3,2622.9,3.2078]
[1727695775386,0.81948,2623.3,2623.2,3.2078]
[1727695776482,4.63148,2623.3,2623.2,3.2078]
[1727695777790,10.63148,2623.3,2623.2,3.2078]
[1727695778086,10.63148,2623.3,2623.2,1.1623]
[1727695778288,0.38122,2623.0,2622.9,3.2078]
[1727695778984,4.19402,2623.0,2622.9,3.2078]
[1727695780690,4.19402,2623.0,2622.6,3.58907]
[1727695780886,0.38123,2622.9,2622.6,3.58907]
[1727695781078,0.38126,2622.7,2622.6,3.2078]
[1727695781878,0.38126,2622.8,2622.6,3.2078]
[1727695782088,4.16082,2623.2,2622.6,3.2078]
[1727695782089,0.38126,2622.7,2622.6,3.2078]
[1727695782491,0.95308,2623.0,2622.6,3.2078]
[1727695782791,0.38126,2622.7,2622.5,3.31129]
[1727695782990,0.38126,2622.7,2622.5,2.93]
[1727695783381,0.38128,2622.6,2622.5,2.93]
[1727695783985,0.8538,2622.8,2622.5,2.93]
[1727695784184,3.2078,2623.5,2622.6,7.0206]
[1727695784485,3.2078,2623.5,2622.9,3.2078]
[1727695784486,4.0944,2623.5,2622.9,3.2078]
[1727695784682,4.47555,2623.5,2623.3,0.38117]
[1727695785384,0.38111,2623.8,2623.6,0.38112]
[1727695785683,3.2078,2623.9,2623.4,4.05098143]
[1727695785888,3.2078,2623.9,2623.5,2.93]
[1727695786084,3.2078,2623.9,2623.7,0.38111]
[1727695786480,0.8607,2624.1,2623.6,4.19042169]
[1727695786680,0.8607,2624.1,2623.9,0.38108]
[1727695786681,0.38108,2624.0,2623.9,0.38108]
[1727695786882,0.8607,2624.1,2623.6,4.19042169]
[1727695787191,0.38106,2624.1,2624.0,0.38107]
[1727695787391,0.38106,2624.1,2623.9,0.38108]
[1727695787689,0.38106,2624.1,2624.0,0.81027]
[1727695789086,0.38106,2624.1,2624.0,0.4292]
[1727695789596,0.38112,2623.7,2623.6,0.38112]
[1727695789785,0.95274,2623.9,2623.6,0.435]
[1727695789987,0.38112,2623.8,2623.7,0.38111]
[1727695790183,0.38111,2623.8,2623.7,0.38111]
[1727695790992,0.38112,2623.7,2623.6,0.81612]
[1727695792291,0.38112,2623.7,2623.6,0.435]
[1727695792481,0.38116,2623.5,2623.3,0.38118]
[1727695792684,0.38116,2623.5,2623.3,0.81617]
[1727695793186,0.95283,2623.7,2623.3,0.81617]
[1727695793187,0.95283,2623.7,2623.4,0.38116]
[1727695793688,0.95283,2623.7,2623.5,0.38114]
[1727695793689,0.38113,2623.7,2623.5,0.38114]
[1727695793892,3.6422,2624.0,2623.5,4.21180456]
[1727695794193,0.3811,2623.9,2623.7,0.38111]
[1727695794388,0.4344,2624.0,2623.5,6.1378]
[1727695794602,0.38108,2624.0,2623.8,0.38109]
[1727695794791,0.38108,2624.0,2623.9,0.4343]
[1727695794989,0.95263,2624.2,2624.0,0.38107]
[1727695794990,0.38106,2624.2,2624.0,0.38107]
[1727695795188,0.38106,2624.2,2623.9,4.50577816]
[1727695795388,0.38106,2624.2,2624.0,0.38106]
[1727695795685,2.049,2625.1,2624.0,0.38106]
[1727695795686,4.16015,2625.0,2624.2,0.95262]
[1727695795887,3.58873,2625.0,2624.9,2.38]
[1727695796092,3.58873,2625.0,2624.4,3.2078]
[1727695796093,0.95238,2624.9,2624.7,2.38]
[1727695796288,0.38096,2624.8,2624.7,2.38]
[1727695796491,0.4298,2624.9,2624.7,2.38]
[1727695796697,0.81075,2624.9,2624.7,2.38]
[1727695797188,0.38095,2624.9,2624.7,2.38]
[1727695797394,3.2078,2625.0,2624.7,2.76097]
[1727695797395,3.58874,2625.0,2624.7,2.76097]
[1727695797698,3.58874,2625.0,2624.6,3.3588]
[1727695797895,3.2078,2625.0,2624.8,0.38095]
[1727695798093,3.2078,2625.0,2624.6,3.3588]
[1727695798390,0.38092,2625.1,2624.6,3.3588]
[1727695798595,0.38092,2625.1,2624.9,0.38094]
[1727695798991,0.3809,2625.3,2624.9,2.93]
[1727695799189,3.2078,2625.7,2625.2,0.38089]
[1727695799390,0.38088,2625.3,2625.2,0.38089]
[1727695800489,3.2078,2625.7,2625.2,4.01326335]
[1727695800795,0.8607,2625.8,2625.5,0.38085]
[1727695801095,0.8607,2625.8,2625.2,4.96551335]
[1727695801096,1.81275,2625.8,2625.3,0.4239]
[1727695801305,0.38086,2625.5,2625.4,0.38087]
[1727695801600,0.38087,2625.4,2625.3,0.4239]
[1727695801997,0.38089,2625.3,2625.2,0.38089]
[1727695802304,3.2078,2625.4,2624.8,3.6413]
[1727695802595,3.2078,2625.4,2624.9,0.38093]
[1727695802596,0.38093,2625.0,2624.9,0.38093]
[1727695802791,3.2078,2625.4,2624.9,2.93]
[1727695802986,0.4312,2625.8,2625.3,2.93]
[1727695803197,0.38082,2625.8,2625.6,0.38083]
[1727695803388,0.38082,2625.8,2625.7,3.31083]
[1727695803590,0.38082,2625.8,2625.7,7.39529729]
[1727695803897,0.38082,2625.8,2625.7,7.01446729]
[1727695804097,3.58859,2626.0,2625.7,7.01446729]
[1727695804297,3.58859,2626.0,2625.8,0.3808]
[1727695804487,0.38081,2625.8,2625.7,7.01446729]
[1727695805296,0.3808,2626.0,2625.7,4.18962]
[1727695805493,0.95193,2626.1,2625.7,4.12196127]
[1727695805690,0.95193,2626.1,2625.5,3.2078]
[1727695805691,0.95197,2626.0,2625.5,3.2078]
[1727695805892,0.38084,2625.6,2625.4,3.3635]
[1727695806198,3.8088,2625.5,2624.9,3.2078]
[1727695806387,0.38093,2625.0,2624.9,3.2078]
[1727695806992,3.2078,2626.1,2624.9,13.0174]
[1727695807197,1.999,2627.4,2625.1,3.2078]
[1727695807198,0.4258,2626.2,2625.1,3.2078]
[1727695807401,0.38084,2625.7,2625.3,2.93]
[1727695807696,0.95197,2626.0,2625.2,4.22199201]
[1727695807905,3.2078,2626.1,2625.1,3.2078]
[1727695808197,0.4258,2626.2,2625.8,2.93]
[1727695808395,0.38077,2626.1,2625.8,2.93]
[1727695808699,0.4258,2626.2,2625.6,0.4266]
[1727695809001,41.2258,2626.2,2625.6,0.4266]
[1727695809195,0.38081,2625.9,2625.6,0.4266]
[1727695809391,0.38077,2626.1,2625.6,0.4266]
[1727695809600,0.38082,2625.8,2625.6,0.4266]
[1727695810209,0.38081,2625.9,2625.4,2.93]
[1727695810393,0.38081,2625.8,2625.4,2.93]
[1727695810590,0.38083,2625.7,2625.4,2.93]
[1727695810899,0.38081,2625.8,2625.4,2.93]
[1727695811293,3.2078,2626.0,2625.4,2.93]
[1727695811594,0.38081,2625.9,2625.4,2.93]
[1727695811795,0.38082,2625.8,2625.4,2.93]
[1727695811993,3.2078,2626.0,2625.4,2.93]
[1727695812498,3.2078,2625.7,2625.2,0.4266]
[1727695812796,3.2078,2625.7,2624.2,0.9526]
[1727695812797,3.2078,2625.4,2624.5,3.2078]
[1727695812997,0.38099,2624.6,2624.5,3.2078]
[1727695813400,0.38097,2624.8,2624.5,3.2078]
[1727695813604,0.4329,2624.9,2624.5,3.58879]
[1727695813993,0.4329,2624.9,2624.6,0.38098]
[1727695814199,0.4329,2624.9,2624.5,3.58879]
[1727695814403,0.4329,2624.9,2624.5,3.2078]
[1727695814604,3.2078,2625.1,2624.6,7.52555888]
[1727695814813,3.2078,2625.1,2624.8,0.38096]
[1727695815107,3.2078,2625.1,2624.7,0.38096]
[1727695815315,0.38094,2625.0,2624.6,7.52555888]
[1727695815501,3.2078,2625.1,2624.6,0.4457]
[1727695815502,0.38097,2624.8,2624.6,0.4457]
[1727695815806,3.2078,2625.1,2624.3,2.93]
[1727695815807,0.38098,2624.7,2624.3,2.93]
[1727695816114,44.0078,2625.1,2624.4,4.25415139]
[1727695816402,3.2078,2625.1,2624.5,3.2078]
[1727695816600,0.38097,2624.8,2624.4,4.25415139]
[1727695816799,0.38097,2624.8,2624.3,3.31102]
[1727695816800,3.2078,2625.1,2624.3,3.31102]
[1727695817000,3.2078,2625.1,2624.3,2.93]
[1727695817305,3.2078,2625.1,2624.4,4.3425417]
[1727695817306,0.38098,2624.7,2624.4,4.3425417]
[1727695817519,40.8,2625.0,2624.3,2.93]
[1727695817710,0.381,2624.6,2624.3,2.93]
[1727695818209,0.4152,2624.9,2624.3,2.93]
[1727695818405,0.426,2624.8,2624.2,3.2078]
[1727695818599,0.38103,2624.3,2624.2,3.2078]
[1727695818801,3.6338,2624.8,2624.2,3.2078]
[1727695819005,0.38093,2625.0,2624.6,0.38097]
[1727695819304,0.38093,2625.0,2624.7,0.443]
[1727695819305,0.38095,2624.9,2624.7,0.443]
[1727695819505,3.2078,2625.0,2624.7,0.443]
[1727695819506,0.38096,2624.8,2624.7,0.443]
[1727695820104,0.4355,2624.9,2624.7,0.443]
[1727695820305,0.81645,2624.9,2624.7,0.443]
[1727695820600,0.4355,2624.9,2624.7,0.443]
[1727695820803,3.58869,2625.3,2624.9,0.38094]
[1727695821003,3.2078,2625.3,2624.8,4.20234066]
[1727695821402,3.2078,2625.3,2624.8,4.58329066]
[1727695821603,0.38092,2625.1,2624.8,4.58329066]
[1727695821818,3.2078,2625.3,2624.8,4.20234066]
[1727695822003,0.38091,2625.2,2624.9,0.38094]
[1727695822206,3.58869,2625.3,2624.9,0.38094]
[1727695822409,3.58869,2625.3,2624.8,4.20234066]
[1727695822410,3.2078,2625.3,2624.8,4.20234066]
[1727695822803,3.2078,2625.3,2624.8,4.58329066]
[1727695823005,0.38091,2625.2,2624.8,4.58329066]
[1727695823311,4.15983,2625.9,2625.3,0.38088]
[1727695823511,0.4383,2625.8,2625.4,0.4217]
[1727695823707,0.38085,2625.6,2625.4,0.4217]
[1727695824106,0.38086,2625.5,2625.4,0.4217]
[1727695824710,0.38085,2625.6,2625.4,0.4217]
[1727695825010,0.4383,2625.8,2625.4,0.4217]
[1727695825011,0.38086,2625.5,2625.4,0.4217]
[1727695825207,0.38085,2625.6,2625.4,0.4217]
[1727695825512,0.38086,2625.5,2625.4,0.4217]
[1727695825707,1.39036,2625.8,2625.4,0.4217]
[1727695826016,0.4383,2625.8,2625.4,0.4217]
[1727695826415,0.38085,2625.6,2625.4,0.80257]
[1727695827015,0.38085,2625.6,2625.4,0.4217]
[1727695827213,0.4383,2625.8,2625.4,0.4217]
[1727695827517,0.95207,2625.7,2625.0,2.93]
[1727695827713,0.95207,2625.7,2625.0,3.31093]
[1727695827714,0.38091,2625.1,2625.0,3.31093]
[1727695827918,0.38091,2625.1,2625.0,2.93]
[1727695828216,0.38093,2625.0,2624.9,3.2078]
[1727695828814,0.4342,2625.7,2625.0,0.38093]
[1727695829021,0.38091,2625.2,2625.0,0.38093]
[1727695829213,0.38089,2625.3,2625.1,0.38091]
[1727695829814,0.38091,2625.2,2625.0,4.29113652]
[1727695830011,0.38091,2625.2,2625.1,0.4336]
[1727695831317,3.6574,2625.5,2624.9,3.2078]
[1727695831626,0.38093,2625.0,2624.9,3.2078]
[1727695832212,0.38093,2625.0,2624.2,0.3047]
[1727695832213,13.0174,2625.0,2624.0,2.93]
[1727695832425,0.9524,2624.8,2624.1,0.4547]
[1727695832626,0.9524,2624.8,2624.2,0.38104]
[1727695832823,0.4461,2624.9,2624.1,4.65666886]
[1727695833017,0.4461,2624.9,2624.3,0.38102]
[1727695833317,0.4262,2625.1,2624.7,2.93]
[1727695833529,0.38092,2625.1,2624.7,3.31097]
[1727695833713,3.2078,2625.3,2624.4,3.2078]
[1727695833714,7.0198,2625.3,2624.4,3.2078]
[1727695833914,0.38107,2624.1,2623.8,3.2078]
[1727695834117,0.38108,2624.0,2623.8,3.2078]
[1727695834429,0.95257,2624.4,2623.8,7.52751217]
[1727695834430,0.38107,2624.1,2623.8,7.52751217]
[1727695835120,0.38106,2624.2,2623.8,7.90861217]
[1727695835327,0.38104,2624.2,2623.8,7.90861217]
[1727695835526,0.86,2624.3,2623.8,7.52751217]
[1727695836125,0.4326,2624.3,2624.0,0.38106]
[1727695836324,0.4326,2624.3,2623.8,7.52751217]
[1727695836622,0.4326,2624.3,2624.0,0.38107]
[1727695836836,0.4326,2624.3,2624.1,0.38105]
[1727695837019,0.38098,2624.7,2624.2,0.38104]
[1727695837218,0.4341,2624.8,2624.3,0.38103]
[1727695837219,0.38099,2624.6,2624.3,0.38103]
[1727695837419,0.381,2624.6,2624.3,7.05947326]
[1727695837620,0.8578,2624.8,2624.3,4.12947326]
[1727695837814,0.95252,2624.5,2624.0,2.93]
[1727695838021,0.38106,2624.2,2624.0,2.93]
[1727695838223,0.38106,2624.1,2624.0,2.93]
[1727695838429,0.95255,2624.4,2624.0,2.93]
[1727695838630,0.95255,2624.4,2623.8,3.2078]
[1727695838821,0.38107,2624.1,2623.8,3.2078]
[1727695839019,0.38107,2624.1,2623.9,4.09510127]
[1727695839217,3.2078,2624.1,2623.9,4.09510127]
[1727695839522,0.38111,2623.8,2623.5,0.83094]
[1727695839824,0.4216,2624.0,2623.5,0.4498]
[1727695840022,0.3811,2623.9,2623.6,0.38113]
[1727695840223,0.3811,2623.9,2623.7,0.38112]
[1727695840425,0.38113,2623.7,2623.5,0.83094]
[1727695840726,0.38111,2623.8,2623.5,0.83094]
[1727695841131,0.4216,2624.0,2623.5,0.4498]
[1727695841328,0.3811,2623.8,2623.7,2.93]
[1727695841819,0.80267,2624.0,2623.7,6.96761402]
[1727695842025,0.4216,2624.0,2623.7,6.96761402]
[1727695842325,0.3811,2623.8,2623.5,0.83094]
[1727695842829,0.4216,2624.0,2623.5,0.4498]
[1727695843130,0.95273,2623.9,2623.5,0.4498]
[1727695843525,0.38113,2623.6,2623.5,0.4498]
[1727695843725,0.4216,2624.0,2623.4,3.2078]
[1727695843924,0.38114,2623.6,2623.4,3.2078]
[1727695844231,0.38114,2623.6,2623.5,4.07920752]
[1727695844822,0.38113,2623.6,2623.5,4.07920752]
[1727695845022,0.38112,2623.7,2623.5,4.46034752]
[1727695845223,0.4261,2623.9,2623.6,0.38113]
[1727695845627,0.8072,2623.9,2623.6,0.38113]
[1727695846131,0.4261,2623.9,2623.5,4.89743752]